Cogmind - Beta 13 @@@ ROGUE MODE // 2024.07.14 @ 01:57:30 Player: Venar246 Result: Self-destructed Performance ------------- Evolutions (2) 1000 Regions Visited (5) 1000 Robots Destroyed (36) 180 Value Destroyed (808) 808 Prototype IDs (24) 480 Alien Tech Used (0) 0 Bonus (322) 322 TOTAL SCORE: 3790 Bonus ------- Follower Combat Kills 67 Aligned with FarCom 300 Friendly Fire -45 Cogmind --------- Core Integrity 550/550 Matter 270/300 Energy 146/160 System Corruption 0% Temperature Cool (0) Movement Walking (120) Location -8/Materials Parts ------- > --- POWER (1) -------- Light Nuclear Core > --- PROPULSION (4) --- Aluminum Leg Aluminum Leg Improved Aluminum Leg Improved Aluminum Leg > --- UTILITY (4) ------ Large Storage Unit Signal Interpreter > --- WEAPON (2) ------- Heavy Assault Rifle Heavy Assault Rifle > --- INVENTORY (15) --- Ion Engine Aluminum Leg Improved Heat Sink Large Storage Unit Improved Terrain Scanner Decoy Drone Bay (16/16) Particle Gun Particle Gun Grenade Launcher Rocket Launcher Katana Longsword +1 Peak State ------------ > --- POWER ------------ Light Nuclear Core > --- PROPULSION ------- Aluminum Leg Aluminum Leg Improved Aluminum Leg Improved Aluminum Leg > --- UTILITY ---------- Large Storage Unit Signal Interpreter Decoy Drone Bay > --- WEAPON ----------- Heavy Assault Rifle Heavy Assault Rifle > --- INVENTORY -------- Ion Engine Aluminum Leg Improved Heat Sink Large Storage Unit Improved Terrain Scanner Particle Gun Particle Gun Grenade Launcher Rocket Launcher Katana Longsword +1 [Rating: 31] Favorites ----------- Power Light Nuclear Core Engine Light Ion Engine Power Core Light Nuclear Core Propulsion Aluminum Leg Leg Aluminum Leg Utility Signal Interpreter Device Heat Sink Storage Large Storage Unit Processor Signal Interpreter Weapon Heavy Assault Rifle Energy Gun Particle Gun Ballistic Gun Heavy Assault Rifle Launcher Rocket Launcher Build | -11 -10 -10 -10 -9 -8 ------- Run | Yrd Mat Min Exi Min Mat Slots Evolved 4 | . . . . . 4 Power . | . . . . . . Propulsion 2 | . . . . . 2 Utility 2 | . . . . . 2 Weapon . | . . . . . . Parts Attached 37 | 6 16 5 . 7 3 Power 6 | 1 2 1 . 2 . Engine 3 | 1 1 . . 1 . Core 3 | . 1 1 . 1 . Reactor . | . . . . . . Propulsion 13 | 2 6 3 . . 2 Treads . | . . . . . . Leg 13 | 2 6 3 . . 2 Wheel . | . . . . . . Hover . | . . . . . . Flight . | . . . . . . Utility 5 | 1 3 . . . 1 Device 2 | . 1 . . . 1 Storage 2 | 1 1 . . . . Processor 1 | . 1 . . . . Hackware . | . . . . . . Protection . | . . . . . . Artifact . | . . . . . . Weapon 13 | 2 5 1 . 5 . Energy Gun 5 | 1 2 . . 2 . Energy Cannon . | . . . . . . Ballistic Gun 7 | 1 3 1 . 2 . Ballistic Cannon . | . . . . . . Launcher 1 | . . . . 1 . Special Weapon . | . . . . . . Impact Weapon . | . . . . . . Slashing Weapon . | . . . . . . Piercing Weapon . | . . . . . . Special Melee Weapon . | . . . . . . Unidentified Prototypes 1 | . . . . . 1 Parts Lost 5 | . 2 2 . 1 . Power 2 | . 1 . . 1 . Propulsion 2 | . 1 1 . . . Utility . | . . . . . . Weapon 1 | . . 1 . . . Highest Loss Streak 1 | . 1 1 . 1 . To Critical Strikes . | . . . . . . Average Slot Usage (%) 98 | . 95 99 100 99 90 Engine 5 | . 4 . . 9 . Core 8 | . 9 14 14 3 9 Leg 27 | . 27 27 28 28 36 Storage 13 | . 14 14 14 14 9 Processor 13 | . 10 14 14 14 9 Energy Gun 2 | . 8 . . 1 . Ballistic Gun 25 | . 19 28 28 26 18 Naked Turns . | . . . . . . Heaviest Build 31 | 12 31 31 29 31 . Greatest Support 26 | 20 26 23 20 20 . Greatest Overweight (x) 3 | 3 2 1 1 1 . Average Overweight (x) . | . . 1 1 1 . Largest Inventory Capacity 15 | 8 15 15 15 15 15 Average Capacity 14 | 7 10 15 15 15 15 Most Carried 15 | 2 12 15 15 15 14 Average Carried 13 | . 8 14 14 14 12 Final Capacity 15 | 8 15 15 15 15 15 Final Carried 15 | 2 12 15 15 15 13 Class Distribution -------------------- 74% | Scavenger-Mutant 25% | Mutant Dominant Class ---------------- Mutant | -10/Materials Scavenger-Mutant | -10/Mines Scavenger-Mutant | -10/Exiles Scavenger-Mutant | -9/Mines Scavenger-Mutant | -8/Materials Resources | -11 -10 -10 -10 -9 -8 ----------- Run | Yrd Mat Min Exi Min Mat Matter Collected 861 | 183 298 218 . 162 . Remotely . | . . . . . . Salvage Created 869 | . 537 220 . 112 . Parts 64 | . 30 21 . 13 . Haulers Intercepted . | . . . . . . Recyclers Shooed . | . . . . . . Parts Field Recycled . | . . . . . . Retrieved Matter . | . . . . . . Parts Self-Destructed . | . . . . . . Prevented . | . . . . . . Kills | -11 -10 -10 -10 -9 -8 ------- Run | Yrd Mat Min Exi Min Mat Combat Hostiles Destroyed 34 | . 15 10 . 9 . Guns 32 | . 15 10 . 7 . AOE 2 | . . . . 2 . Classes Destroyed 3 | . 3 . . . . Watcher 2 | . 2 . . . . Swarmer 18 | . 3 6 . 9 . Grunt 16 | . 12 4 . . . Best Kill Streak 3 | . 3 3 . 3 . Combat Bots Only 3 | . 3 3 . 3 . Max Kills in Single Turn 3 | . 1 1 . 3 . Gunslinging . | . . . . . . Exploded 2 | . . . . 2 . Melee . | . . . . . . Uniques/NPCs Destroyed . | . . . . . . Combat | -11 -10 -10 -10 -9 -8 -------- Run | Yrd Mat Min Exi Min Mat Hostile Shots Fired 142 | . 70 30 . 42 . Missed 36 | . 14 9 . 13 . Damage Taken 1126 | . 637 227 . 262 . Core 183 | . 110 30 . 43 . Absorbed by Shields . | . . . . . . Core Remaining (%) 63 | 100 . . . 26 . Volleys Fired 76 | . 42 15 . 19 . Largest 2 | . 2 2 . 2 . Hottest 130 | . 130 46 . 88 . Shots Fired 152 | . 84 30 . 38 . Gun 151 | . 84 30 . 37 . Cannon . | . . . . . . Launcher 1 | . . . . 1 . Special . | . . . . . . Kinetic 107 | . 44 30 . 33 . Thermal 44 | . 40 . . 4 . Explosive 1 | . . . . 1 . Electromagnetic . | . . . . . . Robot Hit Streak 10 | . 10 9 . 2 . Robot Miss Streak 6 | . 4 2 . 6 . Penetration Max . | . . . . . . Secondary Targets 3 | . 1 1 . 1 . Max Gunslinging Chain 1 | . 1 1 . 1 . Shots Hit Robots 95 | . 60 22 . 13 . Core Hits 54 | . 27 17 . 10 . Critical Kills . | . . . . . . Critical Parts Destroyed . | . . . . . . Critical Strikes 2 | . 2 . . . . Burn 2 | . 2 . . . . Melee Attacks . | . . . . . . Impact . | . . . . . . Slashing . | . . . . . . Piercing . | . . . . . . Sneak Attacks . | . . . . . . Combat Hostiles . | . . . . . . Follow-up Attacks . | . . . . . . Damage Inflicted 1544 | . 960 262 . 322 . Guns 1384 | . 946 258 . 180 . Cannons . | . . . . . . Explosions 119 | . . . . 119 . Melee . | . . . . . . Ramming 41 | . 14 4 . 23 . Kinetic 902 | . 496 258 . 148 . Thermal 482 | . 450 . . 32 . Explosive 119 | . . . . 119 . Electromagnetic . | . . . . . . Impact . | . . . . . . Slashing . | . . . . . . Piercing . | . . . . . . Highest Corruption . | . . . . . . Average Corruption . | . . . . . . Corruption Purged . | . . . . . . Corruption Blocked . | . . . . . . Overload Shots . | . . . . . . Overflow Damage 21 | . . . . 21 . Projectiles . | . . . . . . Explosions 21 | . . . . 21 . Melee . | . . . . . . Knockbacks . | . . . . . . Impact . | . . . . . . Kinetic . | . . . . . . Secondary . | . . . . . . Self-Inflicted Damage 35 | . . . . 35 . Shots 1 | . . . . 1 . Rammed . | . . . . . . Targets Rammed 11 | . 5 1 . 5 . Kicked 11 | . 5 1 . 5 . Crushed . | . . . . . . Highest Temperature 372 | . 372 30 . 78 . Average Temperature 109 | . 136 12 . 37 . Received Heat Transfer 402 | . 303 99 . . . Effects 3 | . 3 . . . . Interference 2 | . 2 . . . . Damage (minor) 1 | . 1 . . . . Siege Activations . | . . . . . . Robots Corrupted . | . . . . . . Combat Hostiles . | . . . . . . Parts Fried . | . . . . . . Impact Corruptions . | . . . . . . Robots Melted . | . . . . . . Combat Hostiles . | . . . . . . Parts Melted 1 | . 1 . . . . Heat Transferred 1258 | . 1184 . . 74 . Parts Sabotaged . | . . . . . . Parts Stolen . | . . . . . . Parts Stripped . | . . . . . . Power Chain Reactions . | . . . . . . Alert | -11 -10 -10 -10 -9 -8 ------- Run | Yrd Mat Min Exi Min Mat Peak Influence 185 | . 185 150 . 102 26 Initial 26 | . . 14 . . 26 Average 45 | . 90 43 . 24 26 Maximum Alert Level . | . . . . . . Low Security (%) 100 | 100 100 100 . 100 100 Level 1 . | . . . . . . Level 2 . | . . . . . . Level 3 . | . . . . . . Level 4 . | . . . . . . Level 5 . | . . . . . . High Security . | . . . . . . Max Security . | . . . . . . Squads Dispatched 3 | . 3 . . . . Investigation 2 | . 2 . . . . Extermination . | . . . . . . Reinforcement 1 | . 1 . . . . Assault . | . . . . . . Garrison . | . . . . . . Intercept . | . . . . . . Searches Triggered . | . . . . . . Construction Impeded . | . . . . . . Haulers Reinforced . | . . . . . . Active Scanning Responses . | . . . . . . Cargo Convoy Interrupts . | . . . . . . Stealth | -11 -10 -10 -10 -9 -8 --------- Run | Yrd Mat Min Exi Min Mat Distress Signals 2 | . 2 . . . . Communications Jammed . | . . . . . . Distress Signals . | . . . . . . Times Spotted 48 | . 25 10 . 13 . Peak Tracking Total 4 | . 4 3 . 4 . Tactical Retreats 3 | . 1 . . 2 . Traps | -11 -10 -10 -10 -9 -8 ------- Run | Yrd Mat Min Exi Min Mat Traps Triggered 4 | . 4 . . . . Indirectly . | . . . . . . Trap Hack Attempts . | . . . . . . Triggered . | . . . . . . Disarmed . | . . . . . . Reprogrammed . | . . . . . . Reused . | . . . . . . Traps Extracted . | . . . . . . Installed . | . . . . . . Triggered . | . . . . . . Machines | -11 -10 -10 -10 -9 -8 ---------- Run | Yrd Mat Min Exi Min Mat Machines Disabled . | . . . . . . Max in Single Turn . | . . . . . . Machines Repaired . | . . . . . . Machines Dismantled . | . . . . . . Machines Sabotaged . | . . . . . . Overloaded Fab Kills . | . . . . . . Hacking | -11 -10 -10 -10 -9 -8 --------- Run | Yrd Mat Min Exi Min Mat Machines Accessed 2 | . . . 1 1 . Terminals . | . . . . . . Fabricators . | . . . . . . Repair Stations . | . . . . . . Recycling Units . | . . . . . . Scanalyzers . | . . . . . . Garrison Access . | . . . . . . Total Hacks 2 | . . . 1 1 . Successful 2 | . . . 1 1 . Failed . | . . . . . . Catastrophic . | . . . . . . Database Lockouts . | . . . . . . Manual 1 | . . . 1 . . Terminals . | . . . . . . Fabricators . | . . . . . . Repair Stations . | . . . . . . Recycling Units . | . . . . . . Scanalyzers . | . . . . . . Garrison Access . | . . . . . . Terminal Hacks 2 | . . . 1 1 . Open Door 1 | . . . . 1 . Derelict Proto ID Bank 1 | . . . 1 . . Fabricator Hacks . | . . . . . . Repair Station Hacks . | . . . . . . Recycling Unit Hacks . | . . . . . . Scanalyzer . | . . . . . . Garrison Access Hacks . | . . . . . . Unauthorized Hacks . | . . . . . . Terminals . | . . . . . . Fabricators . | . . . . . . Repair Stations . | . . . . . . Recycling Units . | . . . . . . Scanalyzers . | . . . . . . Garrison Access . | . . . . . . Data Cores Recovered . | . . . . . . Used . | . . . . . . Hacking Detections . | . . . . . . Full Trace Events . | . . . . . . Feedback Events . | . . . . . . Feedback Blocked . | . . . . . . Robot Schematics Acquired . | . . . . . . Robots Built . | . . . . . . Authchips . | . . . . . . Time . | . . . . . . Total Robot Build Rating . | . . . . . . Part Schematics Acquired . | . . . . . . Parts Built . | . . . . . . Authchips . | . . . . . . Time . | . . . . . . Total Part Build Rating . | . . . . . . Parts Repaired . | . . . . . . Time . | . . . . . . Parts Recycled . | . . . . . . Recycled Matter . | . . . . . . Retrieved Matter . | . . . . . . Retrieved Components . | . . . . . . Parts Scanalyzed . | . . . . . . Part Schematics Acquired . | . . . . . . Parts Damaged . | . . . . . . Bothacking | -11 -10 -10 -10 -9 -8 ------------ Run | Yrd Mat Min Exi Min Mat Used RIF Installer . | . . . . . . Robots Hacked . | . . . . . . Non-combat . | . . . . . . Combat . | . . . . . . Robot Hacks Applied . | . . . . . . Relay Couplers Released . | . . . . . . Fabnet Peak Effective % . | . . . . . . Robots Rewired . | . . . . . . Allies Hacked . | . . . . . . Hacks Repelled . | . . . . . . Allies | -11 -10 -10 -10 -9 -8 -------- Run | Yrd Mat Min Exi Min Mat Total Allies 3 | . . . . 3 . Largest Group 3 | . . . . 3 . Highest-Rated Group 40 | . . . . 40 . Highest-Rated Ally 16 | . . . . 16 . Total Orders . | . . . . . . Ally Attacks 15 | . . . . 15 . Total Damage 159 | . . . . 159 . Kills 3 | . . . . 3 . Allies Corrupted . | . . . . . . Allies Melted . | . . . . . . Intel | -11 -10 -10 -10 -9 -8 ------- Run | Yrd Mat Min Exi Min Mat Robot Analysis Total . | . . . . . . Derelict Logs Recovered 4 | . . 2 . 2 . Drone Launches . | . . . . . . Drone Recoveries . | . . . . . . Exploration | -11 -10 -10 -10 -9 -8 ------------- Run | Yrd Mat Min Exi Min Mat Turns Passed 5550 | 70 1217 1122 673 2464 4 Spaces Moved 2615 | 52 668 553 354 988 . Core 15 | 15 . . . . . Treads . | . . . . . . Legs 2600 | 37 668 553 354 988 . Wheels . | . . . . . . Hover . | . . . . . . Flight . | . . . . . . Fastest Speed 50 | 50 120 190 190 190 . Average Speed 176 | 114 141 190 190 190 . Slowest Speed 260 | 200 260 190 190 190 . Overloaded Moves . | . . . . . . Propulsion Burnouts . | . . . . . . Robots Hopped . | . . . . . . Cave-ins Triggered . | . . . . . . Exploration Rate (%) 53 | 3 76 84 64 95 1 Regions Visited 5 Branch Regions 3 Pre-discovered Areas . | . . . . . . Known Exits Taken 4 | . 1 1 1 1 . Unknown Exits Taken 1 | 1 . . . . . Scrap Searched 4 | . . 2 . 2 . Spaces Dug . | . . . . . . Terrain Destroyed 9 | . . . . 9 . Melee . | . . . . . . Projectile . | . . . . . . AOE 9 | . . . . 9 . Terrain Rammed . | . . . . . . Walls Destroyed . | . . . . . . Machines Disabled . | . . . . . . Actions | -11 -10 -10 -10 -9 -8 --------- Run | Yrd Mat Min Exi Min Mat Total 3404 | 59 853 597 355 1536 4 Wait 624 | . 102 16 . 506 . Move 2610 | 51 667 552 353 987 . Hop . | . . . . . . Pick Up 24 | 2 12 5 1 4 . Fast Attach 17 | 6 8 . . 3 . Attach 7 | . 1 2 . 1 3 Detach 1 | . . . . . 1 Swap 13 | . 7 3 . 3 . Drop 21 | . 9 3 1 8 . Fire 76 | . 42 15 . 19 . Melee . | . . . . . . Ram . | . . . . . . Kick 11 | . 5 1 . 5 . Crush . | . . . . . . Escape Stasis . | . . . . . . Rewire . | . . . . . . Trap . | . . . . . . Miscellaneous . | . . . . . . Route ------- -11/Scrapyard -10/Materials (discovered 4 exits: *Mat x3 / *Min) -10/Mines (discovered 3 exits: *Mat x2 / *Exi) -10/Exiles (discovered 2 exits: *Min x2) -9/Mines -8/Materials History --------- Turn | Location | Event 15 | -11/Scrapyard | Discovered new exit (range 15) 71 | -11/Scrapyard | Entered Materials 318 | -10/Materials | Build established: Mutant 409 | -10/Materials | Discovered new exit (range 16) 637 | -10/Materials | Discovered new exit (range 5) 654 | -10/Materials | Identified exit to Materials 1214 | -10/Materials | Discovered exit to Materials (range 9) 1238 | -10/Materials | Discovered new exit (range 16) 1284 | -10/Materials | Identified exit to Mines 1288 | -10/Materials | Entered Mines 1543 | -10/Mines | Discovered exit to Materials (range 3) 1552 | -10/Mines | Received a Rocket Launcher from a helpful Derelict 1681 | -10/Mines | Found a hidden stash of uninstalled traps 1739 | -10/Mines | Build established: Scavenger-Mutant 1851 | -10/Mines | Learned Materials security intel 1934 | -10/Mines | Core integrity fell below 50% 2258 | -10/Mines | Discovered exit to Materials (range 10) 2286 | -10/Mines | Learned Materials emergency access door positions 2397 | -10/Mines | Deemed a non-threat by the Exiles lab entrance 2399 | -10/Mines | Discovered new exit (range 5) 2406 | -10/Mines | Identified exit to Exiles 2410 | -10/Mines | Entered Exiles 2456 | -10/Exiles | Met 8R-AWN 2490 | -10/Exiles | Met EX-HEX 2549 | -10/Exiles | Met EX-BIN 2570 | -10/Exiles | Aligned with FarCom system 2572 | -10/Exiles | Given EX-Vault access code 2629 | -10/Exiles | Opened EX-Vault 2639 | -10/Exiles | Found Longsword +1 2682 | -10/Exiles | Warned to stay clear of 0b10 Research branches 2815 | -10/Exiles | Discovered new exit (range 14) 2843 | -10/Exiles | Identified exit to Mines 2982 | -10/Exiles | Met EX-DEC 3058 | -10/Exiles | Discovered exit to Mines (range 12) 3083 | -10/Exiles | Left Exiles lab with Longsword +1 3083 | -10/Exiles | Entered Mines 3096 | -9/Mines | Found the Drone Emporium 3121 | -9/Mines | Found Prototype Device 3434 | -9/Mines | Learned Materials emergency access door positions 4604 | -9/Mines | Assisted by bots powering up and referring to "LRC-V3" 5538 | -9/Mines | Discovered new exit (range 4) 5543 | -9/Mines | Identified exit to Materials 5547 | -9/Mines | Entered Materials 5547 | -8/Materials | Evolved 4 slots: Propulsion x2, Utility x2 5549 | -8/Materials | Identified Decoy Drone Bay 5551 | -8/Materials | Self-destructed Last Messages --------------- K-01 Serf collects debris. Dropped Particle Gun. Acquired Katana. K-01 Serf cleans the Core Extractor. Kicked K-01 Serf. Kicked T-07 Excavator out of the way. Kicked K-01 Serf out of the way. Trooper 2a destroyed. S-10 Pest destroyed. Acquired 24 matter. EXIT=FOUND EXIT=IDENTIFIED: MATERIALS PARAMETERS=PROPULSION+2,UTILITY+2 LOCATION=MATERIALS GOAL=ESCAPE Receiving FarCom transmissions... Loading Materials emergency access points (x2)... Loading Materials security intel (x10)... Identified Decoy Drone Bay. Map ----- +----------------------------------------------------+ | | | | | | | | | | | | | | | | | | | | | | | | | | | | | | | ?????????????????????????????????????????????? | | ?????????????????????????????????????????????? | | ?????????????????????????????????????????????? | | ?????????????????????????????????????????????? | | ?????????????????????????????????????????????? | | ?????????????????????????????????????????????? | | ?????????????????????????????????????????????? | | ???????????????????#################?????????? | | ???????????????????# ????????? | | ???????????????????# ????????? | | ???????????????????# @ ????????? | | ???????????????????# ????????? | | ???????????????????####+##########???????????? | | ?????????????????????????????????????????????? | | ?????????????????????????????????????????????? | | ?????????????????????????????????????????????? | | ?????????????????????????????????????????????? | | ?????????????????????????????????????????????? | | ?????????????????????????????????????????????? | | ?????????????????????????????????????????????? | | ?????????????????????????????????????????????? | | ?????????????????????????????????????????????? | | ?????????????????????????????????????????????? | | ?????????????????????????????????????????????? | | ?????????????????????????????????????????????? | | ?????????????????????????????????????????????? | | ?????????????????????????????????????????????? | | ?????????????????????????????????????????????? | | ?????????????????????????????????????????????? | | ?????????????????????????????????????????????? | | ?????????????????????????????????????????????? | | ?????????????????????????????????????????????? | | ?????????????????????????????????????????????? | | ?????????????????????????????????????????????? | | ?????????????????????????????????????????????? | +----------------------------------------------------+ Best States ------------- Heat Dissipation 35 Energy Generation 14 Energy Capacity 250 Matter Stores 300 Matter Capacity 300 Sight Range 16 Terrain Scan Density 10 Evasion (%) 55 Item Schematics ----------------- None Robot Schematics ------------------ None Fabricated ------------ Nothing Alien Tech Used ----------------- None Achievements -------------- None Challenges ------------ None Game ------ Seed PropulsionSchematicActivator Manual? 0 Play Time 00:16:34 Cumulative 12.8 hours Start 2024.07.13 @ 01:14:05 End 2024.07.14 @ 01:57:30 Sessions 3 Manual Loads 0 Difficulty Rogue Special Mode None Game No. 26 Rogue 26 Adventurer 0 Explorer 0 Win Type - Total 0 Types 0/0/0/0/0/0/0/0/0 Lore% 17 Gallery% 23 Achievement% 16 Wizard Run 0 Options --------- Layout 1 ASCII 0 Keyboard 0 Movement Arrows Keybinds 0 Fullscreen 1 Font 32/SmallcapsGlow Map View 50x35 Zoom Use 0% Tactical HUD 0 Map Filters NONE Filters NONE Steam 1 RUN: b6d98176-30bf-4f8c-9749-c283d20248d7